fUST/lending_fUST_20250104
["ID","MTS","AMOUNT","RATE_DAILY","PERIOD"]
[347639097,1736004632228,-181.1380028,0.00015976,2]
[347639099,1736004632239,-682.3862625,0.00016147,2]
[347639101,1736004632249,-250.0,0.00016443,2]
[347639103,1736004632259,-188.69373556,0.00016943,2]
[347639105,1736004632269,-221.56873493,0.00016944,2]
[347639107,1736004632279,-300.0,0.00017043,2]
[347639109,1736004632288,-1178.54317091,0.00017043,2]
[347639111,1736004632297,-9124.1052326,0.00017044,2]
[347639113,1736004632306,-60276.45464333,0.00017044,2]
[347639115,1736004632316,-18545.3792516,0.00017044,2]
[347639117,1736004632325,-247.7507333,0.00017859,2]
[347639119,1736004632334,-24900.0,0.00017892,2]
[347639121,1736004632343,-161.74919859,0.00017959,2]
[347639123,1736004632353,-188.69373554,0.00018011,2]
[347639125,1736004632363,-500.0,0.00018099,2]
[347639127,1736004632372,-240.63028843,0.00018099,2]
[347639129,1736004632387,-500.0,0.00018099,2]
[347639131,1736004632396,-435.68260956,0.00018099,2]
[347639133,1736004632406,-196.10952959,0.00018099,2]
[347639135,1736004632415,-500.0,0.00018099,2]
[347639137,1736004632425,-500.0,0.00018099,2]
[347639139,1736004632434,-500.0,0.00018099,2]
[347639141,1736004632443,-500.0,0.00018099,2]
[347639143,1736004632453,-500.0,0.00018099,2]
[347639145,1736004632462,-500.0,0.00018099,2]
[347639147,1736004632471,-500.0,0.00018099,2]
[347639148,1736004632480,-488.56194835,0.00018099,2]
[347639150,1736004632489,-500.0,0.00018099,2]
[347639151,1736004632499,-500.0,0.00018099,2]
[347639153,1736004632508,-500.0,0.00018099,2]
[347639155,1736004632518,-500.0,0.00018099,2]
[347639157,1736004632527,-500.0,0.00018099,2]
[347639159,1736004632536,-500.0,0.00018099,2]
[347639160,1736004632546,-500.0,0.00018099,2]
[347639161,1736004632555,-500.0,0.00018099,2]
[347639163,1736004632565,-500.0,0.00018099,2]
[347639165,1736004632575,-500.0,0.00018099,2]
[347639166,1736004632588,-3304.02590411,0.000181,2]
[347639168,1736004632598,-3304.02590393,0.000181,2]
[347639170,1736004632607,-3304.02590393,0.000181,2]
[347639172,1736004632616,-3304.02590393,0.000181,2]
[347639173,1736004632631,-3304.02590393,0.000181,2]
[347639174,1736004632641,-3304.02590393,0.000181,2]
[347639176,1736004632650,-3304.02590393,0.00018141,2]
[347639178,1736004632661,-3537.9577454,0.00018143,2]
[347639180,1736004632672,-225.688,0.0001822,2]
[347639181,1736004632682,-1915.39129596,0.00018223,2]
[347639183,1736004632692,-644.06143211,0.00018223,2]
[347639184,1736004632701,-3304.02590393,0.00018348,2]
[347639186,1736004632711,-247.75073326,0.00018534,2]
[347639187,1736004632720,-3304.02590393,0.00018555,2]
[347639188,1736004632730,-420.0,0.00018613,2]
[347639189,1736004632739,-3304.02590393,0.00018762,2]
[347639190,1736004632749,-891.18577313,0.000189,2]
[347639191,1736004632758,-5000.0,0.00018904,7]
[347639192,1736004632768,-3304.02590393,0.00018969,2]
[347639193,1736004632778,-500.0000009,0.00019,2]
[347639194,1736004632788,-164.0,0.00019034,2]
[347639195,1736004632799,-164.0,0.00019034,2]
[347639196,1736004632808,-164.0,0.00019034,2]
[347639197,1736004632817,-164.0,0.00019034,2]
[347639198,1736004632827,-164.0,0.00019034,2]
[347639199,1736004632836,-164.0,0.00019034,2]
[347639200,1736004632846,-164.0,0.00019034,2]
[347639201,1736004632855,-164.0,0.00019034,2]
[347639202,1736004632865,-172.26,0.00019034,2]
[347639203,1736004632876,-500.0,0.0001906,2]
[347639204,1736004632885,-152.67,0.00019077,2]
[347639205,1736004632894,-500.0,0.00019078,2]
[347639206,1736004632904,-178.532,0.00019078,2]
[347639207,1736004632913,-188.69373554,0.00019078,2]
[347639208,1736004632923,-3000.0,0.00019078,2]
[347639209,1736004633058,-419.0,0.000191,8]
[347639210,1736004633069,-500.0,0.00019173,2]
[347639211,1736004633085,-506.10111846,0.00019173,2]
[347639212,1736004633095,-500.0,0.00019173,2]
[347639213,1736004633104,-3304.02590393,0.00019176,2]
[347639214,1736004633114,-500.0,0.00019176,5]
[347639215,1736004633125,-314.47448155,0.00019177,2]
[347639216,1736004633139,-280.05840731,0.00019177,2]
[347639217,1736004633148,-500.0,0.00019177,2]
[347639218,1736004633159,-595.83605402,0.00019177,2]
[347639219,1736004633169,-500.0,0.00019178,2]
[347639220,1736004633179,-500.30370383,0.00019178,2]
[347639221,1736004633190,-500.0,0.00019178,2]
[347639222,1736004633199,-500.0,0.00019178,2]
[347639223,1736004633209,-500.40078651,0.00019178,2]
[347639224,1736004633218,-500.0,0.00019178,2]
[347639225,1736004633227,-504.0986543,0.00019178,2]
[347639226,1736004633237,-500.0,0.00019178,2]
[347639227,1736004633247,-500.0,0.00019178,2]
[347639228,1736004633257,-500.82082393,0.00019178,2]
[347639229,1736004633267,-500.0,0.00019178,2]
[347639230,1736004633277,-500.0,0.00019178,2]
[347639231,1736004633286,-500.0,0.00019178,2]
[347639232,1736004633296,-500.0,0.00019178,2]
[347639233,1736004633306,-500.0,0.00019178,2]
[347639234,1736004633316,-500.0,0.00019178,2]
[347639235,1736004633325,-500.0,0.00019178,2]
[347639236,1736004633335,-500.0,0.00019178,2]
[347639237,1736004633344,-516.80911944,0.00019178,2]
[347639238,1736004633354,-500.0,0.00019178,2]
[347639239,1736004633364,-500.0,0.00019178,2]
[347639240,1736004633376,-500.0,0.00019178,2]
[347639241,1736004633387,-500.0,0.00019178,2]
[347639242,1736004633396,-500.0,0.00019178,2]
[347639243,1736004633407,-500.0,0.00019178,2]
[347639244,1736004633416,-500.0,0.00019178,2]
[347639245,1736004633426,-500.0,0.00019178,2]
[347639246,1736004633436,-500.0,0.00019178,2]
[347639247,1736004633447,-500.0,0.00019178,2]
[347639248,1736004633457,-500.0,0.00019178,2]
[347639249,1736004633467,-362.61268818,0.00019178,2]
[347639250,1736004633477,-500.0,0.00019178,2]
[347639251,1736004633486,-513.98077133,0.00019178,2]
[347639252,1736004633497,-500.0,0.00019178,2]
[347639253,1736004633506,-500.0,0.00019178,2]
[347639254,1736004633516,-500.0,0.00019178,2]
[347639255,1736004633527,-500.0,0.00019178,2]
[347639256,1736004633537,-500.0,0.00019178,2]
[347639257,1736004633546,-500.0,0.00019178,2]
[347639258,1736004633556,-500.0,0.00019178,2]
[347639259,1736004633567,-500.0,0.00019178,2]
[347639260,1736004633577,-576.10994352,0.00019178,2]
[347639261,1736004633586,-500.0,0.00019178,2]
[347639262,1736004633596,-500.0,0.00019178,2]
[347639263,1736004633606,-500.0,0.00019178,2]
[347639264,1736004633616,-500.0,0.00019178,2]
[347639265,1736004633628,-178.5799104,0.00019178,2]
[347639266,1736004633638,-500.0,0.00019178,2]
[347639267,1736004633649,-500.0,0.00019178,2]
[347639268,1736004633659,-500.0,0.00019178,2]
[347639269,1736004633670,-500.0,0.00019178,2]
[347639270,1736004633680,-964.98,0.00019178,2]
[347639271,1736004633690,-500.0,0.00019178,2]
[347639272,1736004633700,-500.0,0.00019178,2]
[347639273,1736004633711,-500.0,0.00019178,2]
[347639274,1736004633720,-500.0,0.00019178,2]
[347639275,1736004633731,-500.0,0.00019178,2]
[347639276,1736004633741,-581.55926894,0.00019178,2]
[347639277,1736004633751,-500.0,0.00019178,2]
[347639278,1736004633761,-500.0,0.00019178,2]
[347639279,1736004633771,-883.26,0.00019178,2]
[347639280,1736004633781,-500.0,0.00019178,2]
[347639281,1736004633791,-500.0,0.00019178,2]
[347639282,1736004633801,-557.91227516,0.00019178,2]
[347639283,1736004633811,-500.0,0.00019178,2]
[347639284,1736004633820,-338.14327349,0.00019178,2]
[347639285,1736004633830,-500.0,0.00019178,2]
[347639286,1736004633840,-500.0,0.00019178,2]
[347639287,1736004633850,-500.0,0.00019178,2]
[347639288,1736004633860,-503.06159566,0.00019178,2]
[347639289,1736004633895,-500.0,0.00019178,2]
[347639290,1736004633905,-633.87268439,0.00019178,2]
[347639291,1736004633915,-318.02126946,0.00019178,2]
[347639292,1736004633925,-500.0,0.00019178,2]
[347639293,1736004633936,-500.0,0.00019178,2]
[347639294,1736004633946,-500.0,0.00019178,2]
[347639295,1736004633956,-1130.59625049,0.00019178,2]
[347639296,1736004633966,-500.0,0.00019178,2]
[347639297,1736004633977,-501.0215994,0.00019178,2]
[347639298,1736004633987,-500.0,0.00019178,2]
[347639299,1736004633997,-380.97869241,0.00019178,2]
[347639300,1736004634007,-500.0,0.00019178,2]
[347639301,1736004634016,-514.78,0.00019178,2]
[347639302,1736004634026,-450.94024019,0.00019178,2]
[347639303,1736004634035,-500.0,0.00019178,2]
[347639304,1736004634045,-500.0,0.00019178,2]
[347639305,1736004634054,-500.0,0.00019178,2]
[347639306,1736004634064,-643.768153,0.00019178,2]
[347639307,1736004634077,-500.0,0.00019178,2]
[347639308,1736004634087,-500.0,0.00019178,2]
[347639309,1736004634096,-218.69938817,0.00019178,2]
[347639310,1736004634106,-500.0,0.00019178,2]
[347639311,1736004634117,-500.0,0.00019178,2]
[347639312,1736004634129,-500.0,0.00019178,2]
[347639313,1736004634139,-603.93118724,0.00019178,2]
[347639314,1736004634151,-500.0,0.00019178,2]
[347639315,1736004634161,-500.0,0.00019178,2]
[347639316,1736004634171,-500.0,0.00019178,2]
[347639317,1736004634180,-500.0,0.00019178,2]
[347639318,1736004634190,-500.0,0.00019178,2]
[347639319,1736004634201,-255.03856287,0.00019178,2]
[347639320,1736004634210,-485.00102342,0.00019178,2]
[347639321,1736004634220,-500.0,0.00019178,2]
[347639322,1736004634229,-500.0,0.00019178,2]
[347639323,1736004634239,-500.0,0.00019178,2]
[347639324,1736004634249,-240.40860552,0.00019178,2]
[347639325,1736004634258,-500.0,0.00019178,2]
[347639326,1736004634267,-500.0,0.00019178,2]
[347639327,1736004634277,-500.0,0.00019178,2]
[347639328,1736004634286,-500.0,0.00019178,2]
[347639329,1736004634295,-500.0,0.00019178,2]
[347639330,1736004634304,-500.0,0.00019178,2]
[347639331,1736004634313,-506.12802253,0.00019178,2]
[347639332,1736004634323,-500.0,0.00019178,2]
[347639333,1736004634333,-500.0,0.00019178,2]
[347639334,1736004634342,-500.0,0.00019178,2]
[347639335,1736004634352,-500.0,0.00019178,2]
[347639336,1736004634362,-500.0,0.00019178,2]
[347639337,1736004634371,-500.0,0.00019178,2]
[347639338,1736004634385,-500.0,0.00019178,2]
[347639339,1736004634396,-500.0,0.00019178,2]
[347639340,1736004634405,-500.0,0.00019178,2]
[347639341,1736004634415,-500.0,0.00019178,2]
[347639342,1736004634426,-500.0,0.00019178,2]
[347639343,1736004634435,-500.0,0.00019178,2]
[347639344,1736004634445,-500.0,0.00019178,2]
[347639345,1736004634455,-500.0,0.00019178,2]
[347639346,1736004634465,-500.0,0.00019178,2]
[347639347,1736004634475,-500.0,0.00019178,2]
[347639348,1736004634484,-500.0,0.00019178,2]
[347639349,1736004634494,-500.0,0.00019178,2]
[347639350,1736004634503,-500.0,0.00019178,2]
[347639351,1736004634512,-500.0,0.00019178,2]
[347639352,1736004634522,-500.0,0.00019178,2]
[347639353,1736004634531,-500.0,0.00019178,2]
[347639354,1736004634541,-500.0,0.00019178,2]
[347639355,1736004634551,-504.19747622,0.00019178,2]
[347639356,1736004634560,-500.0,0.00019178,2]
[347639357,1736004634570,-500.0,0.00019178,2]
[347639358,1736004634580,-500.0,0.00019178,2]
[347639359,1736004634590,-500.0,0.00019178,2]
[347639360,1736004634599,-500.0,0.00019178,2]
[347639361,1736004634609,-500.0,0.00019178,2]
[347639362,1736004634618,-500.0,0.00019178,2]
[347639363,1736004634632,-500.0,0.00019178,2]
[347639364,1736004634642,-500.0,0.00019178,2]
[347639365,1736004634651,-500.0,0.00019178,2]
[347639366,1736004634660,-364.39810632,0.00019178,2]
[347639367,1736004634680,-135.60189368,0.00019178,2]
[347639368,1736004634690,-303.96310632,0.00019178,2]
[347639369,1736004634715,-196.03689368,0.00019178,2]
[347639370,1736004634724,-500.0,0.00019178,2]
[347639371,1736004634734,-500.0,0.00019178,2]
[347639372,1736004634744,-500.0,0.00019178,2]
[347639373,1736004634753,-500.0,0.00019178,2]
[347639374,1736004634763,-500.0,0.00019178,2]
[347639375,1736004634772,-1796.53,0.00019178,2]
[347639376,1736004634781,-1181.16,0.00019178,2]
[347639377,1736004634791,-500.0,0.00019178,2]
[347639378,1736004634801,-500.0,0.00019178,2]
[347639379,1736004634810,-500.0,0.00019178,2]
[347639380,1736004634819,-500.0,0.00019178,2]
[347639381,1736004634829,-500.0,0.00019178,2]
[347639382,1736004634839,-500.0,0.00019178,2]
[347639383,1736004634849,-500.0,0.00019178,2]
[347639384,1736004634858,-500.0,0.00019178,2]
[347639385,1736004634868,-500.0,0.00019178,2]
[347639386,1736004634881,-500.0,0.00019178,2]
[347639387,1736004634892,-500.0,0.00019178,2]
[347639388,1736004634901,-500.0,0.00019178,2]
[347639389,1736004634911,-500.0,0.00019178,2]
[347639390,1736004634922,-500.0,0.00019178,2]
[347639391,1736004634932,-500.0,0.00019178,2]
[347639392,1736004634942,-500.0,0.00019178,2]
[347639393,1736004634951,-176.67478758,0.00019178,2]
[347639394,1736004634961,-500.0,0.00019178,2]
[347639395,1736004634971,-500.0,0.00019178,2]
[347639396,1736004634980,-500.0,0.00019178,2]
[347639397,1736004634989,-500.0,0.00019178,2]
[347639398,1736004634999,-500.0,0.00019178,2]
[347639399,1736004635008,-500.0,0.00019178,2]
[347639400,1736004635018,-577.56,0.00019178,2]
[347639401,1736004635028,-500.0,0.00019178,2]
[347639402,1736004635037,-511.76498727,0.00019178,2]
[347639403,1736004635047,-500.0,0.00019178,2]
[347639404,1736004635056,-832.44,0.00019178,2]
[347639405,1736004635071,-506.0539898,0.00019178,2]
[347639406,1736004635081,-503.07,0.00019178,2]
[347639407,1736004635091,-500.0,0.00019178,2]
[347639408,1736004635101,-500.0,0.00019178,2]
[347639409,1736004635114,-500.0,0.00019178,2]
[347639410,1736004635123,-500.0,0.00019178,2]
[347639411,1736004635136,-500.0,0.00019178,2]
[347639412,1736004635146,-500.0,0.00019178,2]
[347639413,1736004635156,-500.0,0.00019178,2]
[347639414,1736004635165,-500.0,0.00019178,2]
[347639415,1736004635175,-500.0,0.00019178,2]
[347639416,1736004635184,-500.0,0.00019178,2]
[347639417,1736004635195,-500.0,0.00019178,2]
[347639418,1736004635204,-500.0,0.00019178,2]
[347639419,1736004635213,-1107.29,0.00019178,2]
[347639420,1736004635223,-500.0,0.00019178,2]
[347639421,1736004635232,-500.0,0.00019178,2]
[347639422,1736004635242,-500.0,0.00019178,2]
[347639423,1736004635251,-1062.31,0.00019178,2]
[347639424,1736004635262,-500.0,0.00019178,2]
[347639425,1736004635369,-500.0,0.00019178,2]
[347639426,1736004635382,-500.0,0.00019178,2]
[347639427,1736004635392,-500.0,0.00019178,2]
[347639428,1736004635401,-500.0,0.00019178,2]
[347639429,1736004635410,-956.83183954,0.00019178,2]
[347639430,1736004635424,-243.97816046,0.00019178,2]
[347639431,1736004635433,-500.0,0.00019178,2]
[347639432,1736004635443,-500.0,0.00019178,2]
[347639433,1736004635452,-38.28399532,0.00019178,2]
[347639434,1736004635468,-386.10001,0.00019178,2]
[347639435,1736004635479,-75.61599468,0.00019178,2]
[347639436,1736004635489,-500.0,0.00019178,2]
[347639437,1736004635498,-500.0,0.00019178,2]
[347639438,1736004635508,-500.0,0.00019178,2]
[347639439,1736004635517,-500.0,0.00019178,2]
[347639440,1736004635526,-500.0,0.00019178,2]
[347639441,1736004635535,-500.0,0.00019178,2]
[347639442,1736004635545,-500.0,0.00019178,2]
[347639443,1736004635554,-500.0,0.00019178,2]
[347639444,1736004635563,-500.0,0.00019178,2]
[347639445,1736004635572,-500.0,0.00019178,2]
[347639446,1736004635582,-504.1439734,0.00019178,2]
[347639447,1736004635591,-500.0,0.00019178,2]
[347639448,1736004635600,-500.0,0.00019178,2]
[347639449,1736004635609,-453.72480943,0.00019178,2]
[347639473,1736004638053,-725.82961599,0.00019178,2]
[347639475,1736004638368,-456.24557458,0.00019178,2]
[347639476,1736004638380,-500.0,0.00019178,2]
[347639477,1736004638390,-306.27542542,0.00019178,2]
[347639478,1736004638401,-338.48457458,0.00019178,2]
[347639479,1736004638411,-500.0,0.00019178,2]
[347639480,1736004638420,-500.0,0.00019178,2]
[347639481,1736004638429,-586.75279691,0.00019178,2]
[347639482,1736004638439,-519.97657299,0.00019178,2]
[347639483,1736004638448,-530.89421704,0.00019178,2]
[347639484,1736004638457,-500.0,0.00019178,2]
[347639486,1736004638466,-500.0,0.00019178,2]
[347639487,1736004638476,-500.0,0.00019178,2]
[347639488,1736004638486,-500.0,0.00019178,2]
[347639489,1736004638496,-570.07,0.00019178,2]
[347639490,1736004638505,-500.0,0.00019178,2]
[347639491,1736004638515,-500.0,0.00019178,2]
[347639492,1736004638524,-500.0,0.00019178,2]
[347639493,1736004638534,-1459.16,0.00019178,2]
[347639494,1736004638543,-500.0,0.00019178,2]
[347639495,1736004638552,-500.0,0.00019178,2]
[347639496,1736004638561,-500.0,0.00019178,2]
[347639497,1736004638570,-502.23572272,0.00019178,2]
[347639498,1736004638580,-500.0,0.00019178,2]
[347639499,1736004638589,-500.0,0.00019178,2]
[347639500,1736004638599,-898.89,0.00019178,2]
[347639501,1736004638609,-500.0,0.00019178,2]
[347639502,1736004638619,-500.0,0.00019178,2]
[347639503,1736004638630,-500.0,0.00019178,2]
[347639504,1736004638639,-962.23,0.00019178,2]
[347639505,1736004638648,-1537.01,0.00019178,2]
[347639506,1736004638658,-500.0,0.00019178,2]
[347639507,1736004638668,-500.0,0.00019178,2]
[347639508,1736004638678,-500.0,0.00019178,2]
[347639509,1736004638687,-500.0,0.00019178,2]
[347639510,1736004638698,-11351.77,0.00019178,2]
[347639511,1736004638708,-500.0,0.00019178,2]
[347639512,1736004638718,-892.41,0.00019178,2]
[347639513,1736004638727,-625.10440671,0.00019178,2]
[347639514,1736004638737,-500.0,0.00019178,2]
[347639515,1736004638746,-500.0,0.00019178,2]
[347639516,1736004638756,-937.56,0.00019178,2]
[347639517,1736004638766,-500.0,0.00019178,2]
[347639518,1736004638775,-510.46992423,0.00019178,2]
[347639519,1736004638785,-520.84891041,0.00019178,2]
[347639520,1736004638795,-500.0,0.00019178,2]
[347639521,1736004638805,-500.0,0.00019178,2]
[347639522,1736004638814,-500.0,0.00019178,2]
[347639523,1736004638824,-500.0,0.00019178,2]
[347639524,1736004638833,-510.86,0.00019178,2]
[347639525,1736004638843,-500.0,0.00019178,2]
[347639526,1736004638853,-500.0,0.00019178,2]
[347639527,1736004638862,-500.0,0.00019178,2]
[347639528,1736004638872,-541.86,0.00019178,2]
[347639529,1736004638883,-628.35464141,0.00019178,2]
[347639530,1736004638893,-500.0,0.00019178,2]
[347639531,1736004638902,-500.0,0.00019178,2]
[347639532,1736004638912,-500.0,0.00019178,2]
[347639533,1736004638922,-500.0,0.00019178,2]
[347639534,1736004638932,-500.0,0.00019178,2]
[347639535,1736004638941,-1753.85,0.00019178,2]
[347639536,1736004638951,-500.0,0.00019178,2]
[347639537,1736004638961,-500.0,0.00019178,2]
[347639538,1736004638970,-1041.74,0.00019178,2]
[347639539,1736004638979,-500.0,0.00019178,2]
[347639540,1736004638989,-500.0,0.00019178,2]
[347639541,1736004638998,-500.0,0.00019178,2]
[347639542,1736004639007,-500.0,0.00019178,2]
[347639543,1736004639017,-301.91623775,0.00019178,2]
[347639544,1736004639026,-462.91205857,0.00019178,2]
[347639545,1736004639035,-901.03,0.00019178,2]
[347639546,1736004639044,-500.0,0.00019178,2]
[347639547,1736004639054,-500.0,0.00019178,2]
[347639548,1736004639063,-518.59896139,0.00019178,2]
[347639549,1736004639077,-500.0,0.00019178,2]
[347639550,1736004639087,-500.0,0.00019178,2]
[347639551,1736004639097,-500.0,0.00019178,2]
[347639552,1736004639108,-500.0,0.00019178,2]
[347639553,1736004639117,-500.0,0.00019178,2]
[347639554,1736004639126,-500.0,0.00019178,2]
[347639555,1736004639137,-2071.15,0.00019178,2]
[347639556,1736004639148,-500.0,0.00019178,2]
[347639557,1736004639158,-500.0,0.00019178,2]
[347639558,1736004639168,-500.0,0.00019178,2]
[347639559,1736004639176,-500.0,0.00019178,2]
[347639560,1736004639186,-500.0,0.00019178,2]
[347639561,1736004639195,-500.0,0.00019178,2]
[347639562,1736004639204,-989.25,0.00019178,2]
[347639563,1736004639213,-500.0,0.00019178,2]
[347639564,1736004639223,-500.0,0.00019178,2]
[347639565,1736004639233,-1087.04,0.00019178,2]
[347639566,1736004639242,-151.0,0.00019178,2]
[347639567,1736004639251,-502.19862877,0.00019178,2]
[347639568,1736004639261,-500.0,0.00019178,2]
[347639569,1736004639271,-500.0,0.00019178,2]
[347639570,1736004639280,-500.0,0.00019178,2]
[347639571,1736004639290,-854.1,0.00019178,2]
[347639572,1736004639398,-500.0,0.00019178,2]
[347639573,1736004639409,-500.0,0.00019178,2]
[347639574,1736004639418,-500.0,0.00019178,2]
[347639575,1736004639427,-500.0,0.00019178,2]
[347639576,1736004639437,-621.75,0.00019178,2]
[347639577,1736004639447,-500.0,0.00019178,2]
[347639578,1736004639456,-500.0,0.00019178,2]
[347639579,1736004639465,-500.0,0.00019178,2]
[347639580,1736004639474,-500.0,0.00019178,2]
[347639581,1736004639484,-500.0,0.00019178,2]
[347639582,1736004639493,-500.0,0.00019178,2]
[347639583,1736004639502,-500.0,0.00019178,2]
[347639584,1736004639511,-500.0,0.00019178,2]
[347639585,1736004639521,-1342.59,0.00019178,2]
[347639586,1736004639530,-500.0,0.00019178,2]
[347639587,1736004639539,-500.0,0.00019178,2]
[347639588,1736004639549,-500.0,0.00019178,2]
[347639590,1736004639559,-500.0,0.00019178,2]
[347639591,1736004639568,-500.0,0.00019178,2]
[347639592,1736004639578,-500.0,0.00019178,2]
[347639593,1736004639588,-500.0,0.00019178,2]
[347639594,1736004639598,-500.0,0.00019178,2]
[347639595,1736004639607,-500.0,0.00019178,2]
[347639596,1736004639617,-500.0,0.00019178,2]
[347639597,1736004639629,-500.0,0.00019178,2]
[347639598,1736004639639,-500.0,0.00019178,2]
[347639599,1736004639648,-500.0,0.00019178,2]
[347639600,1736004639658,-451.68566564,0.00019178,2]
[347639601,1736004639667,-500.0,0.00019178,2]
[347639602,1736004639677,-500.0,0.00019178,2]
[347639603,1736004639687,-500.0,0.00019178,2]
[347639604,1736004639696,-923.42,0.00019178,2]
[347639605,1736004639706,-500.0,0.00019178,2]
[347639606,1736004639715,-500.0,0.00019178,2]
[347639607,1736004639724,-500.0,0.00019178,2]
[347639608,1736004639733,-500.0,0.00019178,2]
[347639610,1736004639743,-500.0,0.00019178,2]
[347639611,1736004639752,-500.0,0.00019178,2]
[347639612,1736004639763,-2238.96,0.00019178,2]
[347639613,1736004639773,-500.0,0.00019178,2]
[347639614,1736004639783,-501.73266881,0.00019178,2]
[347639615,1736004639792,-500.0,0.00019178,2]
[347639616,1736004639801,-500.0,0.00019178,2]
[347639617,1736004639811,-500.0,0.00019178,2]
[347639618,1736004639820,-500.0,0.00019178,2]
[347639619,1736004639831,-500.0,0.00019178,2]
[347639620,1736004639840,-500.0,0.00019178,2]
[347639621,1736004639849,-500.0,0.00019178,2]
[347639622,1736004639859,-500.0,0.00019178,2]
[347639623,1736004639869,-500.0,0.00019178,2]
[347639625,1736004639881,-500.0,0.00019178,2]
[347639626,1736004639891,-648.29,0.00019178,2]
[347639628,1736004639900,-500.0,0.00019178,2]
[347639630,1736004639909,-500.0,0.00019178,2]
[347639632,1736004639919,-501.60660081,0.00019178,2]
[347639634,1736004639928,-500.0,0.00019178,2]
[347639635,1736004639938,-500.0,0.00019178,2]
[347639637,1736004639948,-500.0,0.00019178,2]
[347639638,1736004639957,-354.3840482,0.00019178,2]
[347639639,1736004639967,-500.0,0.00019178,2]
[347639640,1736004639976,-500.0,0.00019178,2]
[347639641,1736004639986,-514.13925759,0.00019178,2]
[347639642,1736004639995,-500.0,0.00019178,2]
[347639643,1736004640006,-500.0,0.00019178,2]
[347639644,1736004640016,-500.0,0.00019178,2]
[347639645,1736004640025,-500.0,0.00019178,2]
[347639646,1736004640035,-500.0,0.00019178,2]
[347639647,1736004640044,-500.0,0.00019178,2]
[347639648,1736004640053,-500.0,0.00019178,2]
[347639649,1736004640064,-500.0,0.00019178,2]
[347639650,1736004640077,-593.95,0.00019178,2]
[347639651,1736004640087,-500.0,0.00019178,2]
[347639652,1736004640096,-500.0,0.00019178,2]
[347639654,1736004640106,-518.40593838,0.00019178,2]
[347639656,1736004640116,-500.0,0.00019178,2]
[347639658,1736004640126,-506.18295502,0.00019178,2]
[347639659,1736004640139,-500.0,0.00019178,2]
[347639661,1736004640149,-714.22,0.00019178,2]
[347639663,1736004640160,-500.0,0.00019178,2]
[347639665,1736004640170,-2326.4,0.00019178,2]
[347639666,1736004640180,-500.0,0.00019178,2]
[347639668,1736004640190,-500.0,0.00019178,2]
[347639669,1736004640200,-500.0,0.00019178,2]
[347639670,1736004640209,-500.0,0.00019178,2]
[347639671,1736004640219,-1953.94,0.00019178,2]
[347639672,1736004640229,-6427.56,0.00019178,2]
[347639673,1736004640239,-500.0,0.00019178,2]
[347639674,1736004640249,-500.0,0.00019178,2]
[347639675,1736004640259,-500.0,0.00019178,2]
[347639676,1736004640269,-500.0,0.00019178,2]